lending/lending_fUSD_20241211
["ID","MTS","AMOUNT","RATE_DAILY","PERIOD"]
[345003805,1733921436209,-500.0,0.00010958,2]
[345003806,1733921436220,-500.0,0.00010958,2]
[345003807,1733921436232,-5363.94353802,0.00010967,2]
[345003808,1733921436244,-2168.84585383,0.0001097,2]
[345003809,1733921436255,-1853.9145941,0.0001097,2]
[345003810,1733921436267,-5363.94353802,0.0001097,2]
[345003811,1733921436279,-5363.94353802,0.00010972,2]
[345003812,1733921436293,-7482.64378925,0.00010973,2]
[345003813,1733921436304,-5363.94353802,0.00010973,2]
[345003814,1733921436314,-7482.64378925,0.00010974,2]
[345003815,1733921436325,-1853.9145941,0.00010975,2]
[345003816,1733921436336,-1853.9145941,0.00010978,2]
[345003817,1733921436347,-200.0,0.00010978,2]
[345003818,1733921436358,-413.20781185,0.0001098,2]
[345003819,1733921436369,-5363.94353802,0.00010981,2]
[345003820,1733921436381,-7482.64378925,0.00010982,2]
[345003821,1733921436396,-2168.84585383,0.00010983,2]
[345003822,1733921436407,-2168.84585383,0.00010984,2]
[345003823,1733921436420,-2168.84585383,0.00010985,2]
[345003824,1733921436431,-7482.64378925,0.00010986,2]
[345003825,1733921436443,-2168.84585383,0.00010988,2]
[345003826,1733921436454,-1853.9145941,0.00010988,2]
[345003827,1733921436465,-2000.0,0.0001099,2]
[345003828,1733921436476,-200.0,0.0001099,2]
[345003829,1733921436487,-2000.0,0.0001099,2]
[345003830,1733921436498,-200.0,0.0001099,2]
[345003831,1733921436510,-7482.64378925,0.00010991,2]
[345003832,1733921436522,-5363.94353802,0.00010992,2]
[345003833,1733921436532,-1853.9145941,0.00010996,2]
[345003834,1733921436544,-2168.84585383,0.00010997,2]
[345003835,1733921436555,-7482.64378925,0.00010997,2]
[345003836,1733921436566,-1853.9145941,0.00010998,2]
[345003837,1733921436577,-1166.929,0.00010998,2]
[345003838,1733921436588,-500.0,0.00010998,2]
[345003839,1733921436600,-295.35657605,0.00010998,2]
[345003840,1733921436611,-500.0,0.00010998,2]
[345003841,1733921436622,-500.0,0.00010998,2]
[345003842,1733921436633,-500.0,0.00010998,2]
[345003843,1733921436646,-1312.76,0.00010998,2]
[345003844,1733921436656,-570.04256692,0.00010998,2]
[345003845,1733921436666,-500.0,0.00010998,2]
[345003846,1733921436676,-500.0,0.00010998,2]
[345003847,1733921436686,-500.0,0.00010998,2]
[345003848,1733921436697,-500.0,0.00010998,2]
[345003849,1733921436708,-500.0,0.00010998,2]
[345003850,1733921436720,-680.67,0.00010998,2]
[345003851,1733921436730,-500.0,0.00010998,2]
[345003852,1733921436740,-304.40560013,0.00010998,2]
[345003853,1733921436751,-200.0,0.00010998,2]
[345003854,1733921436761,-150.67,0.00010999,2]
[345003855,1733921436771,-500.0,0.00010999,2]
[345003856,1733921436781,-966.78,0.00010999,2]
[345003857,1733921436791,-500.0,0.00010999,2]
[345003858,1733921436802,-500.0,0.00010999,2]
[345003859,1733921436813,-500.0,0.00010999,2]
[345003860,1733921436824,-500.0,0.00010999,2]
[345003861,1733921436834,-500.0,0.00010999,2]
[345003862,1733921436845,-341.88786192,0.00010999,2]
[345003863,1733921436855,-500.0,0.00010999,2]
[345003864,1733921436865,-355.64703913,0.00010999,2]
[345003865,1733921436876,-500.0,0.00010999,2]
[345003866,1733921436889,-500.0,0.00010999,2]
[345003867,1733921436902,-500.0,0.00010999,2]
[345003868,1733921436913,-502.23678438,0.00010999,2]
[345003869,1733921436923,-500.0,0.00010999,2]
[345003870,1733921436935,-500.0,0.00010999,2]
[345003871,1733921436945,-500.0,0.00010999,2]
[345003872,1733921436956,-500.0,0.00010999,2]
[345003873,1733921436970,-500.0,0.00010999,2]
[345003874,1733921436982,-879.15,0.00010999,2]
[345003875,1733921436992,-500.0,0.00010999,2]
[345003876,1733921437004,-500.0,0.00010999,2]
[345003877,1733921437016,-500.0,0.00010999,2]
[345003878,1733921437029,-500.0,0.00010999,2]
[345003879,1733921437040,-500.0,0.00010999,2]
[345003880,1733921437052,-500.0,0.00010999,2]
[345003881,1733921437062,-500.0,0.00010999,2]
[345003882,1733921437073,-500.0,0.00010999,2]
[345003883,1733921437089,-500.0,0.00010999,2]
[345003884,1733921437101,-500.0,0.00010999,2]
[345003885,1733921437112,-500.0,0.00010999,2]
[345003886,1733921437123,-334.95318323,0.00010999,2]
[345003887,1733921437134,-500.0,0.00010999,2]
[345003888,1733921437146,-500.0,0.00010999,2]
[345003889,1733921437158,-500.0,0.00010999,2]
[345003890,1733921437169,-500.0,0.00010999,2]
[345003891,1733921437180,-500.0,0.00010999,2]
[345003892,1733921437190,-500.0,0.00010999,2]
[345003893,1733921437203,-157.33577914,0.00010999,2]
[345003894,1733921437215,-500.0,0.00010999,2]
[345003895,1733921437234,-500.0,0.00010999,2]
[345003896,1733921437252,-500.0,0.00010999,2]
[345003897,1733921437264,-500.0,0.00010999,2]
[345003898,1733921437277,-500.0,0.00010999,2]
[345003899,1733921437294,-500.0,0.00010999,2]
[345003900,1733921437305,-500.0,0.00010999,2]
[345003901,1733921437318,-252.0507124,0.00010999,2]
[345003902,1733921437333,-500.0,0.00010999,2]
[345003903,1733921437346,-500.0,0.00010999,2]
[345003904,1733921437358,-61439.18803033,0.00011,2]
[345003905,1733921437369,-151.0,0.00011,2]
[345003906,1733921437380,-161.9779216,0.00011073,2]
[345003907,1733921437392,-393.21984007,0.00011097,2]
[345003908,1733921437404,-500.0,0.00011097,2]
[345003909,1733921437414,-151.0,0.00011098,2]
[345003910,1733921437424,-500.0,0.00011098,2]
[345003911,1733921437435,-966.78,0.00011098,2]
[345003912,1733921437446,-500.0,0.00011098,2]
[345003913,1733921437456,-500.0,0.00011098,2]
[345003914,1733921437468,-1312.76,0.00011098,2]
[345003915,1733921437484,-500.0,0.00011098,2]
[345003916,1733921437504,-500.0,0.00011098,2]
[345003917,1733921437517,-500.0,0.00011098,2]
[345003918,1733921437533,-879.15,0.00011098,2]
[345003919,1733921437547,-500.0,0.00011098,2]
[345003920,1733921437560,-500.0,0.00011098,2]
[345003921,1733921437574,-500.0,0.00011098,2]
[345003922,1733921437587,-500.0,0.00011098,2]
[345003923,1733921437605,-500.0,0.00011098,2]
[345003924,1733921437884,-500.0,0.00011098,2]
[345003925,1733921437899,-500.0,0.00011098,2]
[345003926,1733921437908,-1031.19,0.00011098,2]
[345003927,1733921437918,-500.0,0.00011098,2]
[345003928,1733921437928,-500.0,0.00011098,2]
[345003929,1733921437937,-500.0,0.00011098,2]
[345003930,1733921437946,-500.0,0.00011098,2]
[345003931,1733921437956,-500.0,0.00011098,2]
[345003932,1733921437965,-500.0,0.00011098,2]
[345003933,1733921437975,-500.0,0.00011098,2]
[345003934,1733921437985,-680.67,0.00011098,2]
[345003935,1733921437995,-500.0,0.00011098,2]
[345003936,1733921438004,-555.02,0.00011098,2]
[345003937,1733921438014,-500.0,0.00011098,2]
[345003938,1733921438024,-500.0,0.00011098,2]
[345003939,1733921438033,-500.0,0.00011098,2]
[345003940,1733921438043,-500.0,0.00011098,2]
[345003942,1733921438052,-500.0,0.00011098,2]
[345003943,1733921438062,-500.0,0.00011098,2]
[345003944,1733921438072,-500.0,0.00011098,2]
[345003945,1733921438080,-151.0,0.00011099,2]
[345003946,1733921438090,-2000.0,0.00011099,2]
[345003947,1733921438099,-200.0,0.00011099,2]
[345003948,1733921438115,-2000.0,0.00011099,2]
[345003949,1733921438124,-200.0,0.00011099,2]
[345003950,1733921438134,-500.0,0.00011099,2]
[345003951,1733921438145,-516.83635566,0.00011099,2]
[345003952,1733921438154,-966.78,0.00011099,2]
[345003953,1733921438163,-966.78,0.00011099,2]
[345003954,1733921438173,-966.78,0.00011099,2]
[345003955,1733921438182,-966.78,0.00011099,2]
[345003957,1733921438192,-966.78,0.00011099,2]
[345003958,1733921438201,-966.78,0.00011099,2]
[345003959,1733921438215,-966.78,0.00011099,2]
[345003960,1733921438225,-966.78,0.00011099,2]
[345003962,1733921438234,-966.78,0.00011099,2]
[345003963,1733921438244,-966.78,0.00011099,2]
[345003964,1733921438254,-966.78,0.00011099,2]
[345003965,1733921438263,-966.78,0.00011099,2]
[345003966,1733921438272,-966.78,0.00011099,2]
[345003967,1733921438282,-966.78,0.00011099,2]
[345003968,1733921438292,-966.78,0.00011099,2]
[345003969,1733921438301,-966.78,0.00011099,2]
[345003970,1733921438311,-966.78,0.00011099,2]
[345003971,1733921438321,-966.78,0.00011099,2]
[345003972,1733921438330,-966.78,0.00011099,2]
[345003973,1733921438339,-966.78,0.00011099,2]
[345003974,1733921438349,-966.78,0.00011099,2]
[345003975,1733921438359,-966.91102827,0.00011099,2]
[345003976,1733921438368,-835.97,0.00011099,2]
[345003977,1733921438379,-428.82,0.00011099,2]
[345003978,1733921438388,-500.0,0.00011099,2]
[345003979,1733921438398,-500.0,0.00011099,2]
[345003980,1733921438408,-500.0,0.00011099,2]
[345003981,1733921438418,-500.0,0.00011099,2]
[345003982,1733921438428,-500.0,0.00011099,2]
[345003983,1733921438438,-500.0,0.00011099,2]
[345003984,1733921438447,-500.0,0.00011099,2]
[345003985,1733921438457,-500.0,0.00011099,2]
[345003986,1733921438467,-500.0,0.00011099,2]
[345003987,1733921438477,-500.0,0.00011099,2]
[345003988,1733921438487,-1312.76,0.00011099,2]
[345003989,1733921438496,-1312.76,0.00011099,2]
[345003990,1733921438505,-1312.76,0.00011099,2]
[345003991,1733921438514,-1312.76,0.00011099,2]
[345003992,1733921438524,-1312.76,0.00011099,2]
[345003993,1733921438534,-1312.76,0.00011099,2]
[345003994,1733921438543,-1312.76,0.00011099,2]
[345003995,1733921438553,-1312.76,0.00011099,2]
[345003996,1733921438562,-1312.76,0.00011099,2]
[345003997,1733921438572,-1312.76,0.00011099,2]
[345003998,1733921438581,-1312.76,0.00011099,2]
[345003999,1733921438591,-1312.76,0.00011099,2]
[345004000,1733921438600,-1312.76,0.00011099,2]
[345004001,1733921438610,-1312.76,0.00011099,2]
[345004002,1733921438621,-1312.76,0.00011099,2]
[345004003,1733921438630,-1312.76,0.00011099,2]
[345004004,1733921438641,-1312.76,0.00011099,2]
[345004005,1733921438650,-1312.76,0.00011099,2]
[345004006,1733921438660,-1312.76,0.00011099,2]
[345004007,1733921438670,-1312.76,0.00011099,2]
[345004008,1733921438679,-1312.76,0.00011099,2]
[345004009,1733921438688,-1312.86201666,0.00011099,2]
[345004010,1733921438698,-500.0,0.00011099,2]
[345004011,1733921438707,-264.73,0.00011099,2]
[345004012,1733921438717,-500.0,0.00011099,2]
[345004013,1733921438726,-500.0,0.00011099,2]
[345004014,1733921438735,-500.0,0.00011099,2]
[345004015,1733921438745,-500.0,0.00011099,2]
[345004016,1733921438758,-500.0,0.00011099,2]
[345004017,1733921438770,-500.0,0.00011099,2]
[345004018,1733921438782,-500.0,0.00011099,2]
[345004019,1733921438791,-280.51567529,0.00011099,2]
[345004020,1733921438801,-500.0,0.00011099,2]
[345004021,1733921438810,-500.0,0.00011099,2]
[345004023,1733921438819,-476.20178674,0.00011099,2]
[345004025,1733921438829,-500.0,0.00011099,2]
[345004026,1733921438838,-575.9,0.00011099,2]
[345004028,1733921438847,-879.15,0.00011099,2]
[345004030,1733921438857,-879.15,0.00011099,2]
[345004031,1733921438866,-879.15,0.00011099,2]
[345004032,1733921438876,-879.15,0.00011099,2]
[345004033,1733921438885,-879.15,0.00011099,2]
[345004034,1733921438898,-879.15,0.00011099,2]
[345004035,1733921438908,-879.15,0.00011099,2]
[345004036,1733921438918,-879.15,0.00011099,2]
[345004037,1733921438928,-879.15,0.00011099,2]
[345004038,1733921438938,-879.15,0.00011099,2]
[345004039,1733921438947,-879.15,0.00011099,2]
[345004040,1733921438956,-879.15,0.00011099,2]
[345004041,1733921438965,-879.15,0.00011099,2]
[345004042,1733921438974,-879.15,0.00011099,2]
[345004043,1733921438984,-879.15,0.00011099,2]
[345004044,1733921438994,-879.15,0.00011099,2]
[345004045,1733921439003,-879.15,0.00011099,2]
[345004046,1733921439013,-879.15,0.00011099,2]
[345004047,1733921439023,-879.15,0.00011099,2]
[345004048,1733921439031,-879.15,0.00011099,2]
[345004049,1733921439041,-879.15,0.00011099,2]
[345004050,1733921439050,-879.38,0.00011099,2]
[345004051,1733921439059,-500.0,0.00011099,2]
[345004052,1733921439069,-500.0,0.00011099,2]
[345004053,1733921439078,-500.0,0.00011099,2]
[345004054,1733921439087,-500.0,0.00011099,2]
[345004055,1733921439096,-199.90026639,0.00011099,2]
[345004056,1733921439105,-500.0,0.00011099,2]
[345004057,1733921439115,-500.0,0.00011099,2]
[345004058,1733921439125,-347.68,0.00011099,2]
[345004059,1733921439135,-333.32,0.00011099,2]
[345004060,1733921439147,-500.0,0.00011099,2]
[345004061,1733921439157,-500.0,0.00011099,2]
[345004062,1733921439166,-500.0,0.00011099,2]
[345004063,1733921439175,-500.0,0.00011099,2]
[345004064,1733921439185,-500.0,0.00011099,2]
[345004065,1733921439194,-500.0,0.00011099,2]
[345004066,1733921439206,-402.52,0.00011099,2]
[345004067,1733921439215,-500.0,0.00011099,2]
[345004068,1733921439224,-500.0,0.00011099,2]
[345004069,1733921439234,-500.0,0.00011099,2]
[345004070,1733921439244,-500.0,0.00011099,2]
[345004071,1733921439254,-500.0,0.00011099,2]
[345004072,1733921439264,-500.0,0.00011099,2]
[345004073,1733921439273,-387.18817929,0.00011099,2]
[345004074,1733921439285,-500.0,0.00011099,2]
[345004075,1733921439294,-500.0,0.00011099,2]
[345004076,1733921439303,-500.0,0.00011099,2]
[345004077,1733921439313,-500.0,0.00011099,2]
[345004078,1733921439323,-500.0,0.00011099,2]
[345004079,1733921439332,-500.0,0.00011099,2]
[345004080,1733921439342,-204.59632046,0.00011099,2]
[345004081,1733921439351,-1031.19,0.00011099,2]
[345004082,1733921439360,-1031.19,0.00011099,2]
[345004083,1733921439370,-1031.19,0.00011099,2]
[345004084,1733921439380,-1031.19,0.00011099,2]
[345004085,1733921439391,-500.0,0.00011099,2]
[345004086,1733921439400,-500.0,0.00011099,2]
[345004087,1733921439410,-1031.19,0.00011099,2]
[345004088,1733921439419,-500.0,0.00011099,2]
[345004089,1733921439428,-500.0,0.00011099,2]
[345004090,1733921439437,-1031.19,0.00011099,2]
[345004091,1733921439446,-186.27,0.00011099,2]
[345004092,1733921439456,-1031.19,0.00011099,2]
[345004093,1733921439465,-1031.19,0.00011099,2]
[345004094,1733921439474,-1031.19,0.00011099,2]
[345004095,1733921439483,-1031.19,0.00011099,2]
[345004096,1733921439492,-1031.19,0.00011099,2]
[345004097,1733921439501,-1031.19,0.00011099,2]
[345004098,1733921439510,-1031.19,0.00011099,2]
[345004099,1733921439518,-1031.19,0.00011099,2]
[345004100,1733921439527,-1031.19,0.00011099,2]
[345004101,1733921439536,-1031.19,0.00011099,2]
[345004102,1733921439545,-1031.19,0.00011099,2]
[345004103,1733921439554,-1031.19,0.00011099,2]
[345004104,1733921439564,-1031.19,0.00011099,2]
[345004105,1733921439575,-1031.19,0.00011099,2]
[345004106,1733921439584,-1031.19,0.00011099,2]
[345004107,1733921439593,-1031.32,0.00011099,2]
[345004108,1733921439603,-175.5,0.00011099,2]
[345004109,1733921439613,-197.22,0.00011099,2]
[345004110,1733921439623,-500.0,0.00011099,2]
[345004111,1733921439634,-500.0,0.00011099,2]
[345004112,1733921439646,-500.0,0.00011099,2]
[345004113,1733921439655,-500.0,0.00011099,2]
[345004114,1733921439665,-500.0,0.00011099,2]
[345004115,1733921439676,-500.0,0.00011099,2]
[345004116,1733921439686,-500.0,0.00011099,2]
[345004117,1733921439696,-500.0,0.00011099,2]
[345004118,1733921439706,-500.0,0.00011099,2]
[345004119,1733921439716,-500.0,0.00011099,2]
[345004120,1733921439726,-500.0,0.00011099,2]
[345004121,1733921439735,-680.67,0.00011099,2]
[345004122,1733921439745,-680.67,0.00011099,2]
[345004123,1733921439754,-680.67,0.00011099,2]
[345004124,1733921439765,-680.67,0.00011099,2]
[345004125,1733921439775,-680.67,0.00011099,2]
[345004126,1733921439784,-680.67,0.00011099,2]
[345004127,1733921439794,-680.67,0.00011099,2]
[345004128,1733921439804,-680.67,0.00011099,2]
[345004129,1733921439815,-680.67,0.00011099,2]
[345004130,1733921439825,-680.67,0.00011099,2]
[345004131,1733921439834,-680.67,0.00011099,2]
[345004132,1733921439844,-680.67,0.00011099,2]
[345004133,1733921439853,-680.67,0.00011099,2]
[345004134,1733921439864,-680.67,0.00011099,2]
[345004135,1733921439873,-680.67,0.00011099,2]
[345004136,1733921439883,-680.67,0.00011099,2]
[345004137,1733921439895,-680.67,0.00011099,2]
[345004138,1733921439905,-680.67,0.00011099,2]
[345004139,1733921439915,-680.67,0.00011099,2]
[345004140,1733921439924,-680.67,0.00011099,2]
[345004141,1733921439934,-680.67,0.00011099,2]
[345004142,1733921439944,-680.69,0.00011099,2]
[345004143,1733921439954,-500.0,0.00011099,2]
[345004144,1733921439964,-500.0,0.00011099,2]
[345004145,1733921439975,-500.0,0.00011099,2]
[345004146,1733921439985,-500.0,0.00011099,2]
[345004147,1733921439995,-500.0,0.00011099,2]
[345004148,1733921440005,-500.0,0.00011099,2]
[345004149,1733921440014,-500.0,0.00011099,2]
[345004150,1733921440024,-500.0,0.00011099,2]
[345004151,1733921440035,-500.0,0.00011099,2]
[345004152,1733921440045,-500.0,0.00011099,2]
[345004153,1733921440054,-500.0,0.00011099,2]
[345004154,1733921440064,-500.0,0.00011099,2]
[345004155,1733921440074,-500.0,0.00011099,2]
[345004156,1733921440084,-500.0,0.00011099,2]
[345004157,1733921440094,-500.0,0.00011099,2]
[345004158,1733921440104,-591.19,0.00011099,2]
[345004159,1733921440114,-500.0,0.00011099,2]
[345004160,1733921440124,-479.24,0.00011099,2]
[345004161,1733921440134,-500.0,0.00011099,2]
[345004162,1733921440145,-500.0,0.00011099,2]
[345004163,1733921440158,-500.0,0.00011099,2]
[345004166,1733921440168,-500.0,0.00011099,2]
[345004168,1733921440178,-448.35975309,0.00011099,2]
[345004169,1733921440187,-500.0,0.00011099,2]
[345004170,1733921440197,-500.0,0.00011099,2]
[345004171,1733921440208,-500.0,0.00011099,2]
[345004172,1733921440218,-431.81858711,0.00011099,2]
[345004173,1733921440227,-500.0,0.00011099,2]
[345004174,1733921440237,-500.0,0.00011099,2]
[345004175,1733921440251,-500.0,0.00011099,2]
[345004176,1733921440261,-500.0,0.00011099,2]
[345004177,1733921440270,-500.0,0.00011099,2]
[345004178,1733921440281,-330.92360416,0.00011099,2]
[345004179,1733921440290,-490.3720784,0.00011099,2]
[345004180,1733921440300,-429050.89401324,0.000111,2]
[345004181,1733921440324,-718.78087629,0.000111,2]
[345004182,1733921440336,-1082.31494482,0.000111,2]
[345004185,1733921440739,224.24,0.0001,2]
[345004198,1733921440887,-1001.55979681,0.000111,2]
[345004199,1733921440904,-310.24010705,0.000111,2]
[345004200,1733921440916,-3146.78821634,0.000111,2]
[345004201,1733921440927,-4885.23926564,0.000111,2]
[345004202,1733921440953,-739.73230278,0.000111,2]
[345004203,1733921440965,-2617.79,0.000111,2]
[345004204,1733921440976,-3087.4626,0.000111,2]
[345004205,1733921441025,-373.44499999,0.000111,2]
[345004206,1733921441036,-913.98676537,0.000111,2]
[345004207,1733921441195,-340.86271333,0.000111,2]
[345004208,1733921441215,-1042.36436997,0.000111,2]
[345004209,1733921441227,-867.74688,0.000111,2]
[345004210,1733921441246,-50435.55449563,0.000111,2]
[345004211,1733921441966,-1873.9458925,0.000111,2]
[345004252,1733921443412,-4800.0,0.000111,2]
[345004273,1733921443626,-805055.07744452,0.000111,2]
[345004274,1733921443635,-43428.79276698,0.000111,2]
[345004275,1733921443647,-1000.0,0.000111,2]
[345004276,1733921443656,-2645932.18920804,0.000111,2]
[345004277,1733921443668,-703.22419473,0.000111,2]
[345004278,1733921443683,-578.58314681,0.000111,2]
[345004279,1733921443694,-468.8786624,0.000111,2]
[345004280,1733921443705,-459.4436244,0.000111,2]
[345004281,1733921443717,-572.119716,0.000111,2]
[345004282,1733921443727,-427.42,0.000111,2]
[345004283,1733921443738,-513.4034575,0.000111,2]
[345004284,1733921443749,-567.93,0.000111,2]
[345004285,1733921443761,-475.5,0.000111,2]
[345004286,1733921443772,-602.72741978,0.000111,2]
[345004287,1733921443783,-954.6,0.000111,2]
[345004288,1733921443794,-764.72434,0.000111,2]
[345004289,1733921443805,-303883.75150642,0.000111,2]
[345004296,1733921446572,-19498.70112165,0.000111,2]
[345004297,1733921446623,-257.40262998,0.000111,2]
[345004298,1733921446639,-1064.0,0.000111,2]
[345004299,1733921446657,-98545.8318412,0.000111,2]
[345004300,1733921446669,-4785.32386,0.000111,2]
[345004301,1733921446680,-10626.5885,0.000111,2]
[345004302,1733921491569,4591.46078136,0.0001,2]
[345004303,1733921503459,-10000.0,0.0001,2]
[345004304,1733921527818,-1543.51342768,0.0001,2]
[345004305,1733921598709,158.21,9.872e-05,2]
[345004306,1733921729448,765.5,8.219e-05,2]
[345004307,1733921806099,-980.0,0.00019,60]
[345004308,1733921848801,-610.0,0.00016658,30]
[345004309,1733922001941,205.14,8.047e-05,2]
[345004312,1733922270426,7327.63657232,0.0001,2]
[345004313,1733922270448,10000.0,0.0001,2]
[345004314,1733922270470,6672.36342768,0.0001,2]
[345004315,1733922271370,250.0,9.943e-05,2]
[345004316,1733922459195,174.37,7.934e-05,2]
[345004319,1733922493155,150.0,9.917e-05,2]
[345004322,1733922534563,158.21,9.931e-05,2]
[345004323,1733922595613,250.0,9.905e-05,2]
[345004336,1733922631518,-250.0,0.00010012,2]
[345004337,1733922631528,-300.0,0.00010017,2]
[345004338,1733922631537,-1000.0,0.00010027,2]
[345004339,1733922631547,-504.28,0.00010069,2]
[345004340,1733922631557,-918.095,0.00010097,2]
[345004341,1733922631568,-1826.005,0.00010097,2]
[345004342,1733922631578,-792.68,0.00010113,2]
[345004343,1733922631592,-300.0,0.0001025,2]
[345004344,1733922631602,-300.0,0.0001025,2]
[345004345,1733922631611,-4306.82,0.00010251,2]
[345004346,1733922631620,-171.56,0.00010416,2]
[345004347,1733922631631,-358.935,0.00010469,2]
[345004348,1733922631647,-406.565,0.00010469,2]
[345004349,1733922631656,-31.2129378,0.0001055,2]
[345004350,1733922631668,-286.5050622,0.0001055,2]
[345004351,1733922631677,-280.0,0.00010685,2]
[345004352,1733922631687,-150.0,0.00010793,2]
[345004353,1733922631697,-1086.294,0.00010794,2]
[345004354,1733922631706,-306.061,0.00010794,2]
[345004355,1733922631715,-631.0,0.00010794,2]
[345004356,1733922631724,-150.0,0.00010794,2]
[345004357,1733922631734,-2006.0,0.00010794,2]
[345004358,1733922631743,-564.0,0.00010794,2]
[345004359,1733922631752,-1895.0,0.00010794,2]
[345004360,1733922631761,-3763.0,0.00010794,2]
[345004361,1733922631770,-378.15081669,0.00010794,2]
[345004362,1733922631787,-874.84918331,0.00010794,2]
[345004363,1733922631796,-817.0,0.00010794,2]
[345004364,1733922631805,-52.15080669,0.00010794,2]
[345004380,1733922637411,-484.41419331,0.00010794,2]
[345004381,1733922637421,-32.39104864,0.00010794,2]
[345004382,1733922637470,-3596.60895136,0.00010794,2]
[345004383,1733922637482,-450.30570814,0.00010794,2]
[345004384,1733922637532,-481.69429186,0.00010794,2]
[345004385,1733922637542,-150.0,0.000108,2]
[345004386,1733922637553,-150.0,0.000108,2]
[345004387,1733922637563,-364.42,0.000108,2]
[345004388,1733922637574,-300.0,0.000108,2]
[345004389,1733922637587,-991.43,0.000108,2]
[345004390,1733922637598,-150.0,0.000108,2]
[345004391,1733922637612,-435.45,0.000108,2]
[345004392,1733922637623,-871.48,0.000108,2]
[345004393,1733922637633,-150.0,0.000108,2]
[345004394,1733922637643,-150.0,0.000108,2]
[345004395,1733922637654,-150.0,0.000108,2]
[345004396,1733922637665,-192.97634831,0.000108,2]
[345004397,1733922637683,-171.44365169,0.000108,2]
[345004398,1733922637695,-768.77,0.000108,2]
[345004399,1733922637706,-435.45,0.000108,2]
[345004400,1733922637716,-435.45,0.000108,2]
[345004401,1733922637727,-150.0,0.000108,2]
[345004402,1733922637737,-768.77,0.000108,2]
[345004403,1733922637748,-150.0,0.000108,2]
[345004404,1733922637758,-150.0,0.000108,2]
[345004405,1733922637769,-130.70150385,0.000108,2]
[345004408,1733922639400,-233.71849615,0.000108,2]
[345004409,1733922639411,-435.45,0.000108,2]
[345004410,1733922639422,-150.0,0.000108,2]
[345004411,1733922639432,-581.88,0.000108,2]
[345004412,1733922639442,-150.0,0.000108,2]
[345004413,1733922639454,-364.42,0.000108,2]
[345004414,1733922639465,-435.45,0.000108,2]
[345004415,1733922639476,-150.0,0.000108,2]
[345004416,1733922639487,-364.42,0.000108,2]
[345004417,1733922639497,-150.0,0.000108,2]
[345004418,1733922639507,-150.0,0.000108,2]
[345004419,1733922639517,-260.10489385,0.000108,2]
[345004420,1733922639531,-115.44510615,0.000108,2]
[345004421,1733922639541,-300.0,0.000108,2]
[345004422,1733922639551,-435.45,0.000108,2]
[345004423,1733922639562,-150.0,0.000108,2]
[345004424,1733922639573,-150.0,0.000108,2]
[345004425,1733922639587,-435.45,0.000108,2]
[345004426,1733922639597,-150.0,0.000108,2]
[345004427,1733922639608,-435.45,0.000108,2]
[345004428,1733922639619,-434.46,0.000108,2]
[345004429,1733922639630,-185.0,0.0001083,2]